bitfinex/quotes_SOLUSD_20251002
["timestamp","ask_amount","ask_price","bid_price","bid_amount"]
[1759373431341,5.42579514,223.64,223.63,1e-08]
[1759373431544,6.93450267,223.64,223.63,1e-08]
[1759373432212,9.35541145,223.64,223.63,1e-08]
[1759373435235,30.15541145,223.64,223.63,1e-08]
[1759373435414,62.45541145,223.64,223.63,1e-08]
[1759373435609,73.33188666,223.64,223.63,1e-08]
[1759373436019,52.53188666,223.64,223.63,1e-08]
[1759373439829,51.86188666,223.64,223.63,1e-08]
[1759373440136,52.53188666,223.64,223.63,1e-08]
[1759373440528,51.86188666,223.64,223.63,1e-08]
[1759373440837,52.53188666,223.64,223.63,1e-08]
[1759373441041,41.03188666,223.64,223.63,1e-08]
[1759373444521,40.36188666,223.64,223.63,1e-08]
[1759373446838,29.48541145,223.64,223.63,1e-08]
[1759373450344,8.68541145,223.64,223.63,0.68000001]
[1759373450546,8.68541145,223.64,223.63,1e-08]
[1759373450960,3.51626579,223.75,223.63,1e-08]
[1759373451127,4.47109155,223.66,223.63,0.68000001]
[1759373451450,3.92961631,223.66,223.63,0.68000001]
[1759373451829,3.92961631,223.69,223.63,0.68000001]
[1759373452536,0.14216157,223.68,223.63,0.68000001]
[1759373453063,4.47087226,223.67,223.63,1e-08]
[1759373453265,4.47087226,223.67,223.64,0.68]
[1759373453860,4.47087226,223.67,223.63,1e-08]
[1759373454063,3.92961631,223.64,223.63,1e-08]
[1759373454355,1.50846681,223.64,223.63,1e-08]
[1759373454756,1.79278995,223.64,223.63,1e-08]
[1759373454967,6.98426195,223.64,223.63,1e-08]
[1759373455629,17.86073716,223.64,223.63,1e-08]
[1759373456031,31.67647521,223.6,223.59,0.2]
[1759373456225,33.32710359,223.6,223.59,0.2]
[1759373456437,34.04710359,223.6,223.59,0.2]
[1759373457163,38.5193755,223.6,223.59,0.2]
[1759373458630,0.72,223.71,223.59,0.9]
[1759373458953,1.50846681,223.67,223.6,0.7]
[1759373459159,1.50846681,223.65,223.6,0.7]
[1759373459332,1.50846681,223.64,223.61,0.7]
[1759373459726,1.50846681,223.65,223.59,0.2]
[1759373459969,1.50846681,223.65,223.6,0.7]
[1759373460260,0.14216157,223.65,223.61,0.7]
[1759373460753,4.47107216,223.66,223.62,0.7]
[1759373461050,4.47107216,223.66,223.63,0.7]
[1759373461430,4.47107216,223.66,223.59,0.2]
[1759373461631,4.47075511,223.68,223.6,0.7]
[1759373461858,11.17537562,223.71,223.6,0.7]
[1759373462232,4.75478736,223.7,223.61,4.47207191]
[1759373462430,4.75478736,223.7,223.62,0.7]
[1759373462941,10.43545795,223.7,223.62,0.7]
[1759373463648,15.93046907,223.7,223.62,0.7]
[1759373463955,21.61113966,223.7,223.62,0.7]
[1759373464754,22.33113966,223.7,223.62,0.7]
[1759373465130,16.65046907,223.7,223.62,0.7]
[1759373465353,5.47478736,223.7,223.62,5.17177634]
[1759373465539,4.75478736,223.7,223.63,0.7]
[1759373466254,4.4700478,223.72,223.63,79.9]
[1759373466456,4.4700478,223.72,223.64,0.7]
[1759373466857,6.40067059,223.73,223.64,0.7]
[1759373467356,0.72,223.73,223.64,5.1714456]
[1759373467560,0.72,223.73,223.64,4.4714456]
[1759373467561,0.86216157,223.73,223.64,4.4714456]
[1759373467857,0.86216157,223.73,223.65,0.7]
[1759373468757,4.46987305,223.72,223.65,0.7]
[1759373469070,5.68067059,223.7,223.62,79.9]
[1759373469270,6.54283216,223.71,223.62,79.9]
[1759373469784,0.28432314,223.67,223.62,79.2]
[1759373469939,0.72,223.66,223.59,0.9]
[1759373470136,5.68067059,223.63,223.59,0.9]
[1759373470358,0.28432314,223.65,223.59,0.9]
[1759373470549,5.68067059,223.64,223.59,0.9]
[1759373470752,4.47167195,223.63,223.59,0.9]
[1759373471259,4.47167195,223.63,223.59,0.2]
[1759373471464,5.19167195,223.63,223.59,0.2]
[1759373471945,6.40067059,223.62,223.59,0.2]
[1759373472142,5.68067059,223.61,223.59,0.2]
[1759373472444,16.69930737,223.6,223.59,0.2]
[1759373472768,21.17157928,223.6,223.59,0.2]
[1759373472946,21.89157928,223.6,223.59,0.2]
[1759373473152,16.21090869,223.6,223.59,0.2]
[1759373473451,16.35307026,223.6,223.59,0.2]
[1759373474046,4.75659505,223.6,223.59,0.2]
[1759373476655,5.47659505,223.6,223.59,0.2]
[1759373477047,4.75659505,223.6,223.59,0.2]
[1759373478038,4.47227191,223.6,223.59,0.2]
[1759373481671,4.75639505,223.61,223.59,0.2]
[1759373482274,5.41639505,223.61,223.59,0.2]
[1759373483546,4.75639505,223.61,223.59,0.2]
[1759373484269,5.42639505,223.61,223.59,0.2]
[1759373485269,4.4717584,223.63,223.59,0.9]
[1759373485464,11.54647521,223.65,223.59,0.9]
[1759373485465,4.47140264,223.65,223.6,0.7]
[1759373485648,4.47140264,223.65,223.61,0.7]
[1759373485844,4.47107216,223.66,223.61,0.7]
[1759373486050,5.14107216,223.66,223.61,0.7]
[1759373486667,4.47107216,223.66,223.59,0.2]
[1759373486857,4.47107216,223.66,223.62,0.7]
[1759373487262,4.47090406,223.67,223.63,0.7]
[1759373487452,4.47090406,223.67,223.59,4.67242156]
[1759373487453,4.47090406,223.67,223.64,0.7]
[1759373487649,4.47059951,223.69,223.64,0.7]
[1759373487853,25.94059951,223.69,223.64,0.7]
[1759373488256,0.67,223.68,223.61,0.7]
[1759373488567,0.81216157,223.68,223.61,0.7]
[1759373489154,0.95432314,223.68,223.61,0.7]
[1759373490076,4.47087226,223.67,223.61,0.7]
[1759373490583,4.47087226,223.67,223.61,5.17195044]
[1759373490954,5.4250042,223.68,223.61,4.47195044]
[1759373491182,5.4250042,223.68,223.62,0.7]
[1759373491371,4.47068106,223.68,223.62,0.7]
[1759373491971,0.67,223.73,223.62,79.9]
[1759373492163,5.1397952,223.73,223.63,5.17167195]
[1759373492363,5.1397952,223.73,223.64,0.7]
[1759373492568,5.1397952,223.73,223.65,32.24]
[1759373492876,0.67,223.76,223.66,0.7]
[1759373493778,8.96844548,223.78,223.68,20.8]
[1759373493984,8.96844548,223.78,223.69,0.7]
[1759373494167,13.43731904,223.78,223.7,4.47027268]
[1759373494363,13.43731904,223.78,223.71,0.7]
[1759373494764,13.43731904,223.78,223.71,32.94]
[1759373494972,0.95432314,223.77,223.68,111.44]
[1759373495273,2.35751971,223.76,223.68,111.44]
[1759373495476,0.95432314,223.77,223.69,0.7]
[1759373496066,4.469074,223.76,223.7,32.24]
[1759373496267,0.67,223.75,223.7,32.24]
[1759373496463,4.469074,223.76,223.7,32.24]
[1759373496758,4.469074,223.76,223.7,32.94]
[1759373496965,8.96844548,223.78,223.73,20.8]
[1759373497164,8.96844548,223.78,223.74,0.7]
[1759373497370,8.96844548,223.78,223.75,0.7]
[1759373497589,8.96844548,223.78,223.76,0.7]
[1759373497786,8.96844548,223.78,223.73,21.5]
[1759373497984,13.43713177,223.78,223.74,0.7]
[1759373498664,14.10713177,223.78,223.72,4.4698508]
[1759373498961,14.10713177,223.78,223.71,5.17006821]
[1759373499666,26.96633795,223.78,223.7,79.2]
[1759373499978,0.67,223.77,223.72,32.24]
[1759373500178,2.35751971,223.74,223.66,0.7]
[1759373500375,0.67,223.73,223.69,32.22]
[1759373500575,0.67,223.72,223.69,32.22]
[1759373500772,0.67,223.74,223.69,32.22]
[1759373500991,23.15751971,223.75,223.69,32.22]
[1759373501190,4.46965206,223.74,223.69,32.22]
[1759373501390,0.81216157,223.76,223.7,0.7]
[1759373501692,5.28124879,223.76,223.69,32.22]
[1759373501893,0.67,223.75,223.69,32.22]
[1759373502194,0.14216157,223.74,223.63,79.2]
[1759373502401,2.35751971,223.71,223.63,79.9]
[1759373502571,0.67,223.73,223.61,0.7]
[1759373502572,2.35751971,223.69,223.61,0.7]
[1759373502773,3.02751971,223.68,223.62,32.22]
[1759373503092,21.08432314,223.72,223.59,0.2]
[1759373503093,18.29059541,223.66,223.59,0.2]
[1759373503298,18.29059541,223.66,223.59,32.42]
[1759373503299,15.64875256,223.66,223.59,32.42]
[1759373503472,2.35751971,223.64,223.59,32.42]
[1759373503667,2.35751971,223.63,223.59,32.42]
[1759373503872,3.02751971,223.63,223.59,32.42]
[1759373504072,3.02751971,223.63,223.59,0.2]
[1759373504288,3.02751971,223.62,223.59,0.2]
[1759373504600,0.14216157,223.65,223.59,0.2]
[1759373504767,0.81216157,223.65,223.59,0.2]
[1759373505190,4.471472,223.64,223.59,0.2]
[1759373505387,4.471472,223.64,223.59,0.9]
[1759373505719,0.14216157,223.67,223.6,0.7]
[1759373505875,0.14216157,223.7,223.6,0.7]
[1759373506209,4.47017136,223.71,223.6,0.7]
[1759373507197,4.47017136,223.71,223.61,4.47207191]
[1759373507505,4.47017136,223.71,223.62,32.92]
[1759373508284,5.68056789,223.69,223.63,32.22]
[1759373508488,5.68056789,223.66,223.59,0.9]
[1759373508688,6.35056789,223.65,223.6,32.22]
[1759373508879,0.67,223.64,223.6,32.22]
[1759373510573,6.35056789,223.63,223.59,0.2]
[1759373510795,5.68056789,223.61,223.59,0.2]
[1759373511179,0.67,223.6,223.59,0.2]
[1759373512219,5.14227191,223.6,223.59,0.2]
[1759373512393,10.8228398,223.6,223.59,0.2]
[1759373512595,0.67,223.6,223.59,0.2]
[1759373513003,10.15282406,223.61,223.59,0.2]
[1759373513721,0.67,223.6,223.59,0.2]
[1759373514100,10.15282406,223.61,223.59,0.2]
[1759373514308,0.68,223.6,223.59,0.2]
[1759373514910,6.36056789,223.6,223.59,0.2]
[1759373515699,17.37920467,223.6,223.59,0.2]
[1759373516316,21.85147658,223.6,223.59,0.2]
[1759373516910,5.29443348,223.6,223.59,0.2]
[1759373517216,10.97500137,223.6,223.59,0.2]
[1759373517920,5.29443348,223.6,223.59,0.2]
[1759373518217,10.97500137,223.6,223.59,0.2]
[1759373519619,11.11716294,223.6,223.59,0.2]
[1759373521915,11.11716294,223.6,223.53,0.2]
[1759373521916,20.8,223.56,223.53,0.2]
[1759373522200,4.07480457,223.54,223.53,0.2]
[1759373522727,4.75480457,223.54,223.53,0.2]
[1759373523307,0.28432314,223.55,223.53,0.2]
[1759373523921,4.47322127,223.56,223.53,0.92]
[1759373524125,4.47322127,223.56,223.53,0.2]
[1759373524509,11.18067978,223.6,223.53,0.2]
[1759373524712,15.11332278,223.6,223.54,0.72]
[1759373524912,4.47264558,223.59,223.54,0.72]
[1759373525208,0.14216157,223.58,223.54,0.72]
[1759373526023,4.61496365,223.58,223.53,0.2]
[1759373526233,4.61496365,223.58,223.55,0.72]
[1759373526926,5.29496365,223.58,223.53,0.2]
[1759373527503,4.61496365,223.58,223.53,0.2]
[1759373527831,4.61496365,223.58,223.54,0.72]
[1759373528036,4.47247016,223.6,223.55,0.72]
[1759373528260,4.47247016,223.6,223.56,0.72]
[1759373528906,0.68,223.63,223.57,0.72]
[1759373529106,11.17791771,223.66,223.57,0.72]
[1759373529107,4.47127207,223.65,223.57,0.72]
[1759373529308,0.68,223.64,223.57,0.72]
[1759373529508,0.14216157,223.63,223.57,0.72]
[1759373529906,1.50868556,223.58,223.53,0.2]
[1759373530140,4.47327219,223.55,223.53,0.2]
[1759373530337,0.68,223.54,223.53,0.2]
[1759373531242,2.18868556,223.54,223.53,0.2]
[1759373531527,2.33084713,223.54,223.53,0.2]
[1759373531731,13.20732234,223.54,223.53,0.2]
[1759373531941,34.00732234,223.54,223.53,0.2]
[1759373532242,5.9827583,223.51,223.5,0.2]
[1759373532606,5.29623431,223.51,223.5,0.2]
[1759373532832,6.80491987,223.51,223.5,0.2]
[1759373533029,11.01863678,223.5,223.49,0.2]
[1759373533234,12.52732234,223.5,223.49,0.2]
[1759373533432,13.20732234,223.5,223.49,0.2]
[1759373534233,20.24965287,223.5,223.49,0.2]
[1759373535238,20.94216157,223.48,223.47,0.2]
[1759373535544,25.01890473,223.48,223.47,0.2]
[1759373535783,11.16079835,223.47,223.45,0.2]
[1759373536070,35.6110568,223.46,223.45,0.2]
[1759373536254,40.08613063,223.46,223.45,0.2]
[1759373536460,40.76613063,223.46,223.45,0.2]
[1759373536629,20.1082922,223.46,223.45,1e-08]
[1759373536830,31.81863678,223.42,223.41,0.2]
[1759373537284,36.43321837,223.42,223.41,0.2]
[1759373537651,32.49863678,223.42,223.41,0.2]
[1759373537836,36.57537994,223.42,223.41,0.2]
[1759373538168,25.69890473,223.42,223.41,0.2]
[1759373538369,30.17477976,223.42,223.41,0.2]
[1759373539268,21.08432314,223.42,223.41,0.2]
[1759373539562,25.01890473,223.42,223.41,0.2]
[1759373539943,25.69890473,223.42,223.41,0.2]
[1759373541262,21.76432314,223.42,223.41,0.2]
[1759373541562,25.01890473,223.42,223.41,0.2]
[1759373542867,4.21890473,223.42,223.41,0.2]
[1759373543488,11.18768459,223.46,223.41,0.87]
[1759373543652,8.41012753,223.44,223.41,0.2]
[1759373543975,8.41012753,223.44,223.42,0.66]
[1759373544489,8.41012753,223.44,223.41,0.2]
[1759373544797,31.98768459,223.46,223.41,0.2]
[1759373544798,14.95321837,223.42,223.41,0.2]
[1759373545258,15.67321837,223.42,223.41,0.2]
[1759373547559,15.81537994,223.42,223.41,0.2]
[1759373547973,35.89537994,223.42,223.41,0.2]
[1759373548272,8.41038245,223.43,223.41,0.2]
[1759373548855,8.41038245,223.43,223.41,0.86]
[1759373549055,4.47580086,223.43,223.41,0.86]
[1759373549358,25.27538294,223.45,223.42,0.66]
[1759373549572,8.40963515,223.47,223.43,0.66]
[1759373549770,20.8,223.46,223.43,0.66]
[1759373549971,20.8,223.45,223.44,0.66]
[1759373550381,8.40963515,223.47,223.44,0.66]
[1759373550980,11.3285317,223.49,223.45,0.66]
[1759373550981,20.8,223.48,223.45,0.66]
[1759373551279,20.8,223.48,223.46,0.66]
[1759373551776,0.28432314,223.49,223.46,0.66]
[1759373551984,8.55121925,223.49,223.46,0.66]
[1759373552151,4.07674316,223.47,223.41,0.2]
[1759373552356,3.93458159,223.43,223.41,0.2]
[1759373552958,3.93458159,223.44,223.41,0.2]
[1759373553582,3.93458159,223.43,223.41,0.2]
[1759373553973,4.47587503,223.42,223.41,0.2]
[1759373555579,9.13045662,223.42,223.41,0.2]
[1759373555787,8.41045662,223.42,223.41,0.2]
[1759373556891,4.47587503,223.42,223.41,0.2]
[1759373557196,8.41028511,223.43,223.41,0.2]
[1759373557561,4.65458159,223.42,223.41,0.2]
[1759373557791,15.5310568,223.42,223.41,0.2]
[1759373558286,20.00693183,223.42,223.4,0.2]
[1759373558467,3.93458159,223.41,223.4,0.2]
[1759373558669,31.67647521,223.4,223.39,0.2]
[1759373558869,68.5510568,223.4,223.39,1e-08]
[1759373559069,68.5510568,223.4,223.36,0.2]
[1759373559383,3.93458159,223.37,223.36,0.2]
[1759373559885,4.65458159,223.37,223.36,0.2]
[1759373560070,4.79674316,223.37,223.36,0.2]
[1759373560385,9.27362009,223.37,223.36,0.2]
[1759373561274,9.41578166,223.37,223.36,0.2]
[1759373563973,8.69578166,223.37,223.36,0.2]
[1759373564378,9.41578166,223.37,223.36,0.2]
[1759373568067,9.41578166,223.37,223.36,1e-08]
[1759373569575,52.51225687,223.37,223.36,1e-08]
[1759373571589,31.67647521,223.33,223.27,0.66]
[1759373571785,3.93458159,223.29,223.27,0.66]
[1759373572080,3.93458159,223.28,223.27,0.66]
[1759373572293,1.51327133,223.28,223.27,0.66]
[1759373572796,4.47888207,223.27,223.25,0.66]
[1759373573098,4.47888207,223.27,223.26,0.66]
[1759373574391,4.47888207,223.27,223.24,0.69]
[1759373574696,4.47868304,223.28,223.25,0.69]
[1759373575403,4.47868304,223.28,223.26,0.69]
[1759373575697,4.47868304,223.28,223.27,0.69]
[1759373576184,5.99195437,223.28,223.24,0.69]
[1759373576385,5.99195437,223.28,223.25,0.69]
[1759373576584,5.99195437,223.28,223.26,0.69]
[1759373577378,5.99195437,223.28,223.27,0.69]
[1759373577775,0.28432314,223.32,223.27,0.69]
[1759373577981,20.8,223.33,223.27,0.69]
[1759373578889,26.79114082,223.33,223.27,0.69]
[1759373579084,1.51327133,223.32,223.27,0.69]
[1759373579291,1.51327133,223.32,223.28,0.69]
[1759373579693,1.51327133,223.31,223.23,32.2]
[1759373579893,1.51327133,223.3,223.24,0.69]
[1759373580094,1.51327133,223.29,223.24,0.69]
[1759373580302,1.51327133,223.27,223.24,0.69]
[1759373580475,1.51327133,223.26,223.22,0.69]
[1759373580879,4.47928331,223.25,223.22,0.69]
[1759373581094,4.47928331,223.25,223.23,0.69]
[1759373581292,0.14216157,223.3,223.24,0.69]
[1759373581499,1.6554329,223.28,223.24,0.69]
[1759373582808,4.47888207,223.27,223.25,0.69]
[1759373583005,4.47888207,223.27,223.23,0.69]
[1759373583206,4.47888207,223.27,223.24,0.69]
[1759373584107,5.9921534,223.27,223.24,0.69]
[1759373584279,6.84357781,223.27,223.24,0.69]
[1759373584705,4.47888207,223.27,223.24,0.69]
[1759373585078,4.47888207,223.27,223.22,0.69]
[1759373585283,7.53357781,223.27,223.22,0.69]
[1759373585497,6.84357781,223.27,223.18,83.68068823]
[1759373585784,4.47888207,223.27,223.23,0.69]
[1759373586200,6.84357781,223.27,223.23,0.69]
[1759373586982,2.36469574,223.25,223.19,79.89]
[1759373587783,4.47888207,223.27,223.2,0.69]
[1759373587991,25.27847317,223.3,223.2,0.69]
[1759373588194,4.47807979,223.31,223.21,4.48008601]
[1759373588403,4.47807979,223.31,223.22,0.69]
[1759373588404,20.8,223.29,223.22,0.69]
[1759373588993,18.03797502,223.31,223.22,0.69]
[1759373589718,18.03797502,223.31,223.22,5.16978958]
[1759373589891,18.03797502,223.31,223.23,0.69]
[1759373590708,3.33901888,223.3,223.23,0.69]
[1759373591009,2.36469574,223.29,223.23,0.69]
[1759373591507,2.36469574,223.28,223.21,0.69]
[1759373591685,2.36469574,223.26,223.18,0.69]
[1759373591885,7.53397905,223.25,223.18,0.69]
[1759373592284,4.47928331,223.25,223.18,0.69]
[1759373592491,4.47928331,223.25,223.18,5.17058911]
[1759373592686,4.47904532,223.27,223.19,0.69]
[1759373593308,4.47904532,223.27,223.19,32.89]
[1759373593509,4.47904532,223.27,223.2,0.69]
[1759373594616,18.04094623,223.27,223.2,0.69]
[1759373594796,2.36469574,223.25,223.18,32.89]
[1759373595613,0.14216157,223.26,223.19,0.69]
[1759373595820,4.47909587,223.26,223.19,5.17043864]
[1759373596015,4.47909587,223.26,223.2,0.69]
[1759373596393,4.47866485,223.29,223.2,0.69]
[1759373597007,3.05469574,223.28,223.2,32.89]
[1759373597206,2.36469574,223.27,223.2,32.89]
[1759373597423,2.36469574,223.27,223.2,112.09]
[1759373597721,3.05469574,223.28,223.2,112.09]
[1759373598015,3.05469574,223.28,223.21,5.17008601]
[1759373598016,4.47888207,223.27,223.21,5.17008601]
[1759373598218,4.47888207,223.27,223.21,0.69]
[1759373599190,0.14216157,223.3,223.21,0.69]
[1759373599417,4.47824331,223.31,223.21,79.89]
[1759373599714,4.47824331,223.31,223.22,0.69]
[1759373600099,4.62004084,223.32,223.23,4.47968463]
[1759373600300,4.62004084,223.32,223.24,0.69]
[1759373601098,0.69,223.33,223.24,0.69]
[1759373601304,0.67,223.34,223.24,0.69]
[1759373602224,5.14749269,223.34,223.25,4.47928331]
[1759373602519,5.14749269,223.34,223.26,32.88]
[1759373602698,5.14749269,223.34,223.27,0.7]
[1759373603295,5.14749269,223.34,223.27,5.17873406]
[1759373604015,5.14749269,223.34,223.27,0.7]
[1759373604206,7.51218843,223.34,223.26,32.18]
[1759373604524,2.36469574,223.32,223.25,0.65]
[1759373604704,2.36469574,223.32,223.26,32.18]
[1759373605519,4.47807979,223.31,223.26,32.18]
[1759373605712,5.18807979,223.31,223.26,32.83]
[1759373606323,5.18807979,223.31,223.26,112.03]
[1759373607526,4.47848089,223.29,223.27,32.18]
[1759373607720,0.71,223.28,223.27,32.18]
[1759373607916,3.07469574,223.28,223.22,0.65]
[1759373608225,3.07469574,223.28,223.23,32.18]
[1759373608426,3.07469574,223.28,223.23,32.83]
[1759373609015,2.36469574,223.28,223.23,32.83]
[1759373609221,3.07469574,223.28,223.23,32.83]
[1759373609602,11.1949402,223.32,223.24,5.12948396]
[1759373609804,14.26963594,223.32,223.24,5.12948396]
[1759373610727,2.36469574,223.3,223.23,32.18]
[1759373611034,0.71,223.29,223.23,32.18]
[1759373611243,3.07469574,223.29,223.21,5.12997035]
[1759373611533,3.07469574,223.29,223.24,32.18]
[1759373611718,5.18868147,223.28,223.24,32.18]
[1759373612027,4.47868147,223.28,223.25,32.18]
[1759373612233,0.71,223.28,223.24,0.65]
[1759373612535,5.18845999,223.3,223.25,32.18]
[1759373612839,0.71,223.29,223.25,32.18]
[1759373613213,4.47849624,223.29,223.25,32.83]
[1759373613434,0.14216157,223.28,223.22,0.65]
[1759373613631,0.14216157,223.28,223.18,0.65]
[1759373613632,2.36469574,223.24,223.18,0.65]
[1759373613811,3.07469574,223.24,223.19,32.18]
[1759373614004,0.71,223.23,223.19,32.18]
[1759373614204,0.71,223.22,223.19,32.18]
[1759373615238,4.48008601,223.21,223.19,32.18]
[1759373616003,2.36469574,223.23,223.19,32.18]
[1759373616208,0.71,223.24,223.19,32.18]
[1759373616209,7.55421655,223.24,223.19,32.83]
[1759373616435,0.71,223.23,223.19,32.18]
[1759373617233,4.47952081,223.24,223.19,32.83]
[1759373617429,5.18952081,223.24,223.19,32.83]
[1759373618133,0.71,223.23,223.19,32.18]
[1759373619240,4.47988531,223.22,223.19,32.18]
[1759373619839,5.18988531,223.22,223.17,0.65]
[1759373620132,3.07469574,223.21,223.17,32.16]
[1759373620334,0.71,223.2,223.17,32.16]
[1759373620636,0.71,223.19,223.17,32.16]
[1759373620813,2.36469574,223.2,223.17,32.16]
[1759373621012,3.35901888,223.21,223.17,32.16]
[1759373621237,4.48028673,223.2,223.16,111.36]
[1759373621421,4.48028673,223.2,223.16,112.01]
[1759373622227,3.35901888,223.21,223.16,112.01]
[1759373622614,3.35901888,223.21,223.16,79.85]
[1759373622821,7.83921978,223.21,223.17,32.16]
[1759373623442,7.83921978,223.21,223.16,79.85]
[1759373623612,7.12921978,223.21,223.13,0.2]
[1759373623813,7.83921978,223.21,223.14,32.81]
[1759373624123,2.36469574,223.2,223.14,32.81]
[1759373624332,3.07469574,223.2,223.14,32.81]
[1759373625335,4.48048747,223.19,223.14,32.81]
[1759373625535,4.48048747,223.19,223.15,0.65]
[1759373626134,4.76460669,223.21,223.16,0.65]
[1759373626322,4.76460669,223.21,223.17,0.65]
[1759373626323,5.47460669,223.21,223.17,0.65]
[1759373626522,5.47460669,223.21,223.15,0.65]
[1759373626733,7.83930243,223.21,223.14,32.16]
[1759373626916,0.71,223.2,223.14,32.81]
[1759373627117,7.12930243,223.21,223.14,32.16]
[1759373627312,7.12930243,223.21,223.15,0.65]
[1759373628438,19.03951747,223.21,223.15,0.65]
[1759373629433,19.03951747,223.21,223.13,0.85]
[1759373629622,2.36469574,223.2,223.13,0.85]
[1759373629932,2.36469574,223.18,223.13,0.2]
[1759373630233,0.71,223.17,223.14,32.16]
[1759373630437,0.71,223.17,223.13,0.2]
[1759373630636,0.71,223.17,223.13,32.36]
[1759373630822,4.4810898,223.16,223.13,0.2]
[1759373631017,5.1910898,223.16,223.13,32.36]
[1759373631218,4.4810898,223.16,223.13,0.2]
[1759373631420,5.1910898,223.16,223.13,32.36]
[1759373631720,4.48089907,223.17,223.13,33.01]
[1759373632424,5.19089907,223.17,223.13,33.01]
[1759373632827,0.71,223.17,223.13,33.01]
[1759373633142,4.62304275,223.18,223.13,33.01]
[1759373633332,5.33304275,223.18,223.13,33.01]
[1759373634336,5.33304275,223.18,223.13,0.85]
[1759373634836,5.33304275,223.18,223.14,32.16]
[1759373635237,4.62304275,223.18,223.15,0.72]
[1759373635823,5.28304275,223.18,223.14,32.16]
[1759373637349,0.66,223.17,223.14,32.16]
[1759373637533,0.66,223.16,223.14,32.16]
[1759373638247,18.18945907,223.18,223.14,32.16]
[1759373638248,18.84945907,223.18,223.14,32.16]
[1759373638450,0.66,223.17,223.14,32.16]
[1759373638947,18.18945907,223.18,223.14,32.16]
[1759373639144,18.84945907,223.18,223.14,32.16]
[1759373639349,16.48476333,223.18,223.13,0.2]
[1759373639645,16.48476333,223.18,223.13,0.92]
[1759373639846,16.48476333,223.18,223.14,32.16]
[1759373640027,5.28304275,223.18,223.14,32.16]
[1759373640523,4.62304275,223.18,223.14,32.16]
[1759373640724,0.66,223.17,223.14,32.16]
[1759373641248,0.66,223.17,223.13,0.2]
[1759373641437,0.66,223.17,223.14,32.16]
[1759373642338,4.4810898,223.16,223.14,32.16]
[1759373643253,5.1410898,223.16,223.14,32.14]
[1759373645251,4.4810898,223.16,223.14,32.14]
[1759373646252,5.1410898,223.16,223.14,32.14]
[1759373646456,4.4810898,223.16,223.14,32.14]
[1759373647850,5.1410898,223.16,223.14,32.14]
[1759373648444,4.4810898,223.16,223.14,32.14]
[1759373649051,5.1410898,223.16,223.14,32.14]
[1759373649351,0.66,223.15,223.13,0.2]
[1759373649537,1.51464947,223.14,223.13,0.2]
[1759373649746,2.17464947,223.14,223.13,0.2]
[1759373650333,6.65614091,223.14,223.13,0.2]
[1759373650637,4.48149144,223.14,223.13,0.2]
[1759373651666,6.79830248,223.14,223.13,0.2]
[1759373652070,5.28365301,223.14,223.13,0.2]
[1759373652234,6.79830248,223.14,223.13,0.2]
[1759373653458,6.94046405,223.14,223.13,0.2]
[1759373658550,17.81693926,223.14,223.13,0.2]
[1759373669846,38.61693926,223.14,223.13,0.2]
[1759373670243,41.63104463,223.14,223.13,0.2]
[1759373671642,20.83104463,223.14,223.13,0.2]
[1759373671843,17.81693926,223.14,223.13,0.2]
[1759373672061,38.61693926,223.14,223.13,0.2]
[1759373672263,41.63104463,223.14,223.13,0.2]